bitfinex/quotes_BTCUSD_20251027
["timestamp","ask_amount","ask_price","bid_price","bid_amount"]
[1761578379280,0.0002,115070.0,115060.0,1.50112247]
[1761578379745,0.00082066,115070.0,115060.0,1.50112247]
[1761578379952,0.00082066,115070.0,115060.0,0.72306235]
[1761578380149,0.00082066,115070.0,115060.0,1.50112247]
[1761578380348,0.00082066,115070.0,115060.0,1.59094148]
[1761578382130,0.00082066,115070.0,115060.0,1.20191142]
[1761578382346,0.00082066,115070.0,115060.0,1.59094148]
[1761578384804,0.00082066,115070.0,115060.0,1.20191142]
[1761578385039,0.00082066,115070.0,115060.0,1.29227142]
[1761578386248,0.00894273,115070.0,115060.0,1.29227142]
[1761578387333,0.00894273,115070.0,115060.0,1.46603142]
[1761578387758,0.00894273,115070.0,115060.0,1.07700136]
[1761578387967,0.00894273,115070.0,115060.0,1.46603142]
[1761578388190,0.00894273,115070.0,115060.0,0.99321241]
[1761578388416,0.00082066,115070.0,115060.0,1.58461241]
[1761578388647,0.02690039,115070.0,115060.0,1.58461241]
[1761578389360,0.00082066,115070.0,115060.0,1.58461241]
[1761578389578,0.00082066,115070.0,115060.0,1.5932876]
[1761578389800,0.00082066,115070.0,115060.0,1.67443142]
[1761578390214,0.00082066,115070.0,115060.0,2.06346148]
[1761578391133,0.56365796,115070.0,115060.0,0.85558235]
[1761578391372,0.66159932,115070.0,115060.0,0.68176]
[1761578391639,0.68768152,115070.0,115060.0,0.85558235]
[1761578391864,0.68768152,115070.0,115060.0,0.68176]
[1761578392314,0.29865146,115070.0,115060.0,0.85558235]
[1761578392543,0.12484422,115070.0,115060.0,0.94540136]
[1761578393209,0.12484422,115070.0,115060.0,0.85558235]
[1761578396184,0.03502521,115070.0,115060.0,1.24461241]
[1761578396413,0.00082066,115070.0,115060.0,1.24461241]
[1761578396876,0.00082066,115070.0,115060.0,1.63364247]
[1761578397112,0.00082066,115070.0,115060.0,1.97364247]
[1761578397342,0.00082066,115070.0,115060.0,2.06346148]
[1761578397609,0.00082066,115070.0,115060.0,1.67443142]
[1761578397826,0.00082066,115070.0,115060.0,0.60418235]
[1761578398063,0.00082066,115070.0,115060.0,0.26418235]
[1761578398297,0.00082066,115070.0,115060.0,0.85558235]
[1761578398504,0.00082066,115070.0,115060.0,0.79998235]
[1761578398712,0.00082066,115070.0,115060.0,0.85558235]
[1761578398926,0.00082066,115070.0,115060.0,0.94540136]
[1761578399557,0.00082066,115070.0,115060.0,1.33443142]
[1761578399773,0.00082066,115070.0,115060.0,0.94540136]
[1761578400196,0.00082066,115070.0,115060.0,0.35400136]
[1761578400412,0.00082066,115070.0,115060.0,0.94540136]
[1761578401038,0.00082066,115070.0,115060.0,0.85558235]
[1761578401237,0.00082066,115070.0,115060.0,0.79994235]
[1761578401363,0.00082066,115070.0,115060.0,0.90554235]
[1761578401565,0.28617281,115070.0,115060.0,0.90554235]
[1761578401802,0.65316034,115070.0,115060.0,0.14036]
[1761578402008,0.67924297,115070.0,115060.0,0.57824]
[1761578402420,0.67924297,115070.0,115060.0,0.6818]
[1761578403066,0.68836784,115070.0,115060.0,0.6818]
[1761578403465,0.29965441,115070.0,115060.0,0.6818]
[1761578403672,0.68836784,115070.0,115060.0,0.74998]
[1761578403883,0.68836784,115070.0,115060.0,0.6818]
[1761578404677,0.67924297,115070.0,115060.0,0.6818]
[1761578404894,0.68736538,115070.0,115060.0,0.6818]
[1761578405124,0.68836538,115070.0,115060.0,0.6818]
[1761578405781,0.27356932,115070.0,115060.0,0.94118588]
[1761578406016,0.09163967,115070.0,115060.0,0.94118588]
[1761578406252,0.09063967,115070.0,115060.0,0.71190588]
[1761578406501,0.00182066,115070.0,115060.0,0.94126588]
[1761578406988,0.00482066,115070.0,115060.0,0.99126588]
[1761578407453,0.00482066,115070.0,115060.0,0.39974588]
[1761578407677,0.67888624,115070.0,115060.0,0.14036]
[1761578407923,0.67888624,115070.0,115060.0,0.90578235]
[1761578407924,0.26744691,115070.0,115060.0,0.90578235]
[1761578408151,0.26444691,115070.0,115060.0,0.90578235]
[1761578408380,0.09163967,115070.0,115060.0,0.90578235]
[1761578408639,0.09463967,115070.0,115060.0,0.90578235]
[1761578408861,0.09163967,115070.0,115060.0,0.99560136]
[1761578409361,0.00482066,115070.0,115060.0,0.99560136]
[1761578409635,0.00082066,115070.0,115060.0,0.99560136]
[1761578409846,0.00382066,115070.0,115060.0,0.99560136]
[1761578410062,0.00382066,115070.0,115060.0,0.90578235]
[1761578410286,0.00082066,115070.0,115060.0,0.90578235]
[1761578411221,0.26444691,115070.0,115060.0,0.52270235]
[1761578411449,0.26444691,115070.0,115060.0,0.90574235]
[1761578411640,0.26744691,115070.0,115060.0,0.90574235]
[1761578412156,0.26744691,115070.0,115060.0,0.67632]
[1761578412375,0.26744691,115070.0,115060.0,0.14036]
[1761578412589,0.26744691,115070.0,115060.0,0.73188]
[1761578412808,0.26744691,115070.0,115060.0,0.14036]
[1761578413019,0.26744691,115070.0,115060.0,0.73188]
[1761578413221,0.95109387,115070.0,115060.0,0.45256]
[1761578413433,0.97717929,115070.0,115060.0,0.68192]
[1761578414421,0.30165661,115070.0,115060.0,0.68192]
[1761578415257,0.30165661,115070.0,115060.0,0.62628]
[1761578415472,0.98530357,115070.0,115060.0,0.68188]
[1761578415689,0.30165661,115070.0,115060.0,0.68188]
[1761578416123,0.30165661,115070.0,115060.0,0.94127388]
[1761578416334,0.26744691,115070.0,115060.0,0.68188]
[1761578416760,0.26744691,115070.0,115060.0,0.85570235]
[1761578417395,0.26744691,115070.0,115060.0,0.90570235]
[1761578418353,0.26744691,115070.0,115060.0,0.73188]
[1761578418555,0.27557308,115070.0,115060.0,0.73188]
[1761578419249,0.27557308,115070.0,115060.0,0.67624]
[1761578419462,0.27557308,115070.0,115060.0,0.73184]
[1761578421114,0.27557308,115070.0,115060.0,0.14036]
[1761578421334,0.27557308,115070.0,115060.0,0.73184]
[1761578422179,0.27557308,115070.0,115060.0,0.90566235]
[1761578422362,0.27557308,115070.0,115060.0,0.14036]
[1761578422571,0.95922004,115070.0,115060.0,0.73184]
[1761578423014,0.98530625,115070.0,115060.0,0.73184]
[1761578423244,0.27557308,115070.0,115060.0,0.73184]
[1761578423560,0.27557308,115070.0,115060.0,0.90566235]
[1761578423764,0.27557308,115070.0,115060.0,0.73184]
[1761578425297,0.27557308,115070.0,115060.0,0.99548136]
[1761578425718,0.10176584,115070.0,115060.0,0.99548136]
[1761578425830,0.09363967,115070.0,115060.0,0.99548136]
[1761578426253,0.00382066,115070.0,115060.0,0.99548136]
[1761578427540,0.00382066,115070.0,115060.0,0.90566235]
[1761578430196,0.00382066,115070.0,115060.0,0.81530235]
[1761578430973,0.28917281,115070.0,115060.0,0.05]
[1761578431215,0.26744691,115070.0,115060.0,0.05]
[1761578431388,0.26744691,115070.0,115060.0,0.64136]
[1761578431620,0.26744691,115070.0,115060.0,0.62572]
[1761578432129,0.26744691,115070.0,115060.0,0.03436]
[1761578432309,0.26744691,115070.0,115060.0,0.5914]
[1761578435236,0.26744691,115070.0,115060.0,0.59136]
[1761578435630,0.09363967,115070.0,115060.0,0.76518235]
[1761578435865,0.26744691,115070.0,115060.0,0.76518235]
[1761578436067,0.26744691,115070.0,115060.0,0.59136]
[1761578436643,0.26744691,115070.0,115060.0,0.76518235]
[1761578437135,0.17382235,115060.0,115050.0,0.26419585]
[1761578437348,0.17382235,115060.0,115050.0,0.85555585]
[1761578438050,0.17382235,115060.0,115050.0,0.26419746]
[1761578438293,0.26364136,115060.0,115050.0,0.09036]
[1761578438497,0.26364136,115060.0,115050.0,0.85551746]
[1761578438758,0.26364136,115060.0,115050.0,0.68172]
[1761578438935,0.26664136,115060.0,115050.0,0.68172]
[1761578439376,0.26664136,115060.0,115050.0,0.26419746]
[1761578439596,0.26664136,115060.0,115050.0,0.85551746]
[1761578439803,0.26364136,115060.0,115050.0,0.85551746]
[1761578440231,0.26364136,115060.0,115050.0,0.62608]
[1761578440463,0.26364136,115060.0,115050.0,0.85551746]
[1761578441111,0.26364136,115060.0,115050.0,0.68168]
[1761578441112,0.26664136,115060.0,115050.0,0.68168]
[1761578441315,0.26364136,115060.0,115050.0,0.68168]
[1761578441748,0.26664136,115060.0,115050.0,0.68168]
[1761578441982,0.26664136,115060.0,115050.0,0.09036]
[1761578442231,1.3264706,115060.0,115050.0,0.52824]
[1761578442447,2.95074168,115060.0,115050.0,0.68172]
[1761578442657,2.08036568,115060.0,115050.0,0.68172]
[1761578442869,2.08077949,115060.0,115050.0,0.68172]
[1761578443341,1.95742233,115060.0,115050.0,0.47324]
[1761578443557,1.95842233,115060.0,115050.0,0.47324]
[1761578444148,0.1738828,115020.0,115010.0,0.18256637]
[1761578444312,0.26370181,115020.0,115010.0,0.76548391]
[1761578445277,0.26370181,115020.0,115010.0,0.59158599]
[1761578445682,0.2897983,115020.0,115010.0,0.59158599]
[1761578445890,0.2897983,115020.0,115010.0,0.59658599]
[1761578446112,0.2897983,115020.0,115010.0,0.59158599]
[1761578446417,0.2897983,115020.0,115010.0,0.59258599]
[1761578447122,0.2897983,115020.0,115010.0,0.59158599]
[1761578448054,0.2897983,115020.0,115010.0,0.60058599]
[1761578448272,0.2897983,115020.0,115010.0,0.59158599]
[1761578448499,0.2897983,115020.0,115010.0,0.59558599]
[1761578448955,0.1159155,115020.0,115010.0,0.84658356]
[1761578449189,0.1825603,115040.0,115020.0,0.17387059]
[1761578449400,0.11591246,115030.0,115020.0,0.17387059]
[1761578449633,0.11591246,115030.0,115020.0,0.32747059]
[1761578449634,0.08981901,115030.0,115020.0,0.32747059]
[1761578450286,0.1825603,115040.0,115030.0,0.17386768]
[1761578450502,0.27237931,115040.0,115030.0,0.17386768]
[1761578450727,0.27237931,115040.0,115020.0,0.32747059]
[1761578450947,0.27237931,115040.0,115030.0,0.17386768]
[1761578452762,0.08981901,115040.0,115030.0,0.17386768]
[1761578452980,0.26367158,115040.0,115030.0,0.17386768]
[1761578453207,0.08981901,115040.0,115030.0,0.17386768]
[1761578453409,0.26467158,115040.0,115030.0,0.17386768]
[1761578453947,0.26467158,115040.0,115030.0,0.17586768]
[1761578454164,0.09081901,115040.0,115030.0,0.22420151]
[1761578454365,0.26367158,115040.0,115030.0,0.22420151]
[1761578454568,0.08981901,115040.0,115030.0,0.23120151]
[1761578454968,0.00020692,115050.0,115040.0,0.17385257]
[1761578455175,0.00020692,115050.0,115040.0,0.38321257]
[1761578455372,0.00020692,115050.0,115040.0,0.47303158]
[1761578456682,0.00020692,115050.0,115040.0,0.47403158]
[1761578457107,0.00020692,115050.0,115040.0,1.49867854]
[1761578457540,0.00020692,115050.0,115040.0,1.49767854]
[1761578458811,0.00020692,115050.0,115040.0,1.50367854]
[1761578459607,0.00020692,115050.0,115040.0,0.82003158]
[1761578459799,0.00020692,115050.0,115040.0,1.37225052]
[1761578460255,0.00020692,115050.0,115040.0,0.52085257]
[1761578460459,0.00020692,115050.0,115040.0,1.11265257]
[1761578461098,0.00020692,115050.0,115040.0,0.52085257]
[1761578461319,0.00020692,115050.0,115040.0,1.11265257]
[1761578463107,0.00020692,115050.0,115040.0,0.52085257]
[1761578463321,0.00020692,115050.0,115040.0,1.11265257]
[1761578463483,0.00020692,115050.0,115040.0,1.20247158]
[1761578464128,0.00020692,115050.0,115040.0,0.61067158]
[1761578464299,0.00020692,115050.0,115040.0,1.11261257]
[1761578465984,0.00020692,115050.0,115040.0,1.66483151]
[1761578468029,0.00020692,115050.0,115040.0,1.11261257]
[1761578468229,0.00020692,115050.0,115040.0,1.11257257]
[1761578468429,0.00020692,115050.0,115040.0,1.20239158]
[1761578469038,0.17404438,115050.0,115040.0,0.347]
[1761578469243,0.17404438,115050.0,115040.0,0.44496]
[1761578469244,0.81608233,115050.0,115040.0,0.44496]
[1761578469443,0.81608233,115050.0,115040.0,0.59876]
[1761578470151,0.81608233,115050.0,115040.0,0.006]
[1761578470344,0.17386603,115040.0,115020.0,0.18256473]
[1761578470545,0.08981901,115030.0,115020.0,0.21909508]
[1761578470748,0.08981901,115030.0,115020.0,0.65705508]
[1761578470981,0.17385585,115040.0,115030.0,0.17386309]
[1761578471175,0.08981901,115040.0,115030.0,0.17386309]
[1761578471371,0.08981901,115040.0,115030.0,0.32766309]
[1761578471587,0.08981901,115040.0,115030.0,0.40747246]
[1761578471955,0.26367158,115040.0,115030.0,0.40747246]
[1761578472161,0.26367158,115040.0,115030.0,0.32766309]
[1761578472961,0.08981901,115040.0,115030.0,0.32766309]
[1761578473490,0.08981901,115040.0,115030.0,0.32866309]
[1761578473638,0.26367158,115040.0,115030.0,0.32866309]
[1761578474101,0.00020692,115050.0,115030.0,0.66866309]
[1761578474332,0.26386339,115050.0,115040.0,0.17385257]
[1761578474489,0.09002593,115050.0,115040.0,0.17385257]
[1761578475098,0.00020692,115050.0,115040.0,0.17385257]
[1761578476573,0.00120692,115050.0,115040.0,0.17385257]
[1761578477625,0.00320692,115050.0,115040.0,0.17385257]
[1761578477884,0.00120692,115050.0,115040.0,0.17385257]
[1761578478311,0.26486339,115050.0,115040.0,0.76561257]
[1761578478748,0.26386339,115050.0,115040.0,0.17985257]
[1761578479013,0.26386339,115050.0,115040.0,0.54316]
[1761578479225,0.81608233,115050.0,115040.0,0.007]
[1761578479433,0.81608233,115050.0,115040.0,0.5988]
[1761578480081,0.81608233,115050.0,115040.0,0.5918]
[1761578480310,0.17385257,115040.0,115030.0,0.17386309]
[1761578480516,0.26367158,115040.0,115030.0,0.76566309]
[1761578481160,0.26367158,115040.0,115030.0,0.17386309]
[1761578481371,0.26367158,115040.0,115030.0,0.76562309]
[1761578481582,0.26367158,115040.0,115030.0,0.76962309]
[1761578482203,0.26367158,115040.0,115030.0,0.004]
[1761578482424,0.26367158,115040.0,115030.0,0.59576]
[1761578482641,0.26367158,115040.0,115030.0,0.004]
[1761578482908,0.81589052,115040.0,115030.0,0.59576]
[1761578483132,0.81589052,115040.0,115030.0,0.44196]
[1761578483343,0.81589052,115040.0,115030.0,0.59584]
[1761578483344,1.20019882,115040.0,115030.0,0.59584]
[1761578483987,0.1738828,115020.0,115010.0,0.00014599]
[1761578484219,0.26370181,115020.0,115010.0,0.59198599]
[1761578484427,0.26370181,115020.0,115010.0,0.76588391]
[1761578484637,0.08981901,115020.0,115010.0,0.85570292]
[1761578484848,0.18254519,115040.0,115020.0,0.1738828]
[1761578484849,0.18754519,115040.0,115020.0,0.1738828]
[1761578485061,0.08981901,115030.0,115020.0,0.1738828]
[1761578485273,0.08981901,115030.0,115020.0,0.87998174]
[1761578485493,0.08981901,115030.0,115020.0,0.3277628]
[1761578485709,0.08981901,115030.0,115020.0,0.41758181]
[1761578488007,0.08981901,115030.0,115020.0,0.3277628]
[1761578488211,0.08981901,115030.0,115020.0,0.3317628]
[1761578493186,0.08981901,115030.0,115020.0,0.3817628]
[1761578495061,0.18273625,115050.0,115040.0,0.17385257]
[1761578495285,0.27255526,115050.0,115040.0,0.38333257]
[1761578495485,0.27255526,115050.0,115040.0,0.20948]
[1761578495684,0.27255526,115050.0,115040.0,0.38333257]
[1761578495885,0.27255526,115050.0,115040.0,0.20948]
[1761578496297,0.27355526,115050.0,115040.0,0.20948]
[1761578496558,0.27355526,115050.0,115040.0,0.0556]
[1761578497338,0.27555526,115050.0,115040.0,0.0556]
[1761578497742,0.27555526,115050.0,115040.0,0.20944]
[1761578498340,0.8277742,115050.0,115040.0,0.20944]
[1761578498916,0.17385257,115040.0,115020.0,0.1738828]
[1761578499104,0.26368669,115030.0,115020.0,0.1738828]
[1761578499419,0.26368669,115030.0,115020.0,0.7657228]
[1761578500180,0.26368669,115030.0,115020.0,0.7101228]
[1761578500381,0.26368669,115030.0,115020.0,0.7657228]
[1761578500687,0.26368669,115030.0,115020.0,0.7697228]
[1761578501083,0.26368669,115030.0,115020.0,0.004]
[1761578501273,0.26368669,115030.0,115020.0,0.7697228]
[1761578501673,0.08981901,115030.0,115020.0,0.79939846]
[1761578501872,0.26368669,115030.0,115020.0,0.7697228]
[1761578502989,0.65270255,115030.0,115020.0,0.7697228]
[1761578503246,0.26368669,115030.0,115020.0,0.7697228]
[1761578503841,0.08981901,115030.0,115020.0,0.7697228]
[1761578504056,0.08981901,115030.0,115020.0,1.24855767]
[1761578504270,0.17385257,115040.0,115030.0,0.17385398]
[1761578504499,0.08981901,115040.0,115030.0,0.17385398]
[1761578505358,0.08981901,115040.0,115030.0,0.56286984]
[1761578506858,0.08981901,115040.0,115030.0,0.56386984]
[1761578507551,0.08981901,115040.0,115030.0,0.63002954]
[1761578507761,0.08981901,115040.0,115030.0,0.24101368]
[1761578508015,0.26367158,115040.0,115030.0,0.17485398]
[1761578508218,0.81613232,115040.0,115030.0,0.59288]
[1761578509314,0.26367158,115040.0,115030.0,0.53724]
[1761578509516,0.26467158,115040.0,115030.0,0.59284]
[1761578509946,0.26467158,115040.0,115030.0,0.59184]
[1761578510405,0.26667158,115040.0,115030.0,0.59184]
[1761578511222,0.17386768,115030.0,115020.0,0.17388217]
[1761578511360,0.26368669,115030.0,115020.0,0.76568217]
[1761578511760,0.08981901,115030.0,115020.0,0.82602088]
[1761578512550,0.08981901,115030.0,115020.0,0.76568217]
[1761578513064,0.08981901,115030.0,115020.0,0.17388217]
[1761578513266,0.08981901,115030.0,115020.0,0.76572217]
[1761578513472,0.08981901,115030.0,115020.0,0.76672217]
[1761578513872,0.08981901,115030.0,115020.0,0.76572217]
[1761578514301,0.08981901,115030.0,115020.0,0.85954118]
[1761578514507,0.08981901,115030.0,115020.0,0.85554118]
[1761578514908,0.08981901,115030.0,115020.0,0.85954118]
[1761578515904,0.08981901,115030.0,115020.0,0.76972217]
[1761578518435,0.26368669,115030.0,115020.0,0.76972217]
[1761578518837,0.26368669,115030.0,115020.0,0.3864]
[1761578519043,0.26368669,115030.0,115020.0,0.7696428]
[1761578520341,0.26368669,115030.0,115020.0,0.7696028]
[1761578520509,0.26368669,115030.0,115020.0,0.59572]
[1761578520755,0.26368669,115030.0,115020.0,0.004]
[1761578520959,0.81614743,115030.0,115020.0,0.004]
[1761578521298,0.8242884,115030.0,115020.0,0.59576]
[1761578521519,0.843045,115030.0,115020.0,0.59576]
[1761578521918,0.98337735,115030.0,115020.0,0.59576]
[1761578522147,0.96462075,115030.0,115020.0,0.59576]
[1761578522975,0.96462075,115030.0,115020.0,0.59176]
[1761578523211,0.27182766,115030.0,115020.0,0.59176]
[1761578523422,0.27682766,115030.0,115020.0,0.59176]
[1761578524723,0.27782766,115030.0,115020.0,0.59176]
[1761578525303,0.26968669,115030.0,115020.0,0.59176]
[1761578526107,0.26968669,115030.0,115020.0,0.7656428]
[1761578527119,0.26968669,115030.0,115020.0,0.59172]
[1761578527556,0.26468669,115030.0,115020.0,0.59172]
[1761578527738,0.27181808,115030.0,115020.0,0.59172]
[1761578527979,0.27181808,115030.0,115020.0,0.59272]
[1761578528208,0.9479881,115030.0,115020.0,0.59272]
[1761578528418,0.9479881,115030.0,115020.0,0.59284]
[1761578528678,1.33230146,115030.0,115020.0,0.43904]
[1761578528909,1.33230146,115030.0,115020.0,0.59284]
[1761578529143,3.33330146,115030.0,115020.0,0.59284]
[1761578529370,2.27881977,115030.0,115020.0,0.59284]
[1761578529595,2.29655037,115030.0,115020.0,0.59284]
[1761578529818,2.00151333,115030.0,115020.0,0.59284]
[1761578530010,2.0411776,115030.0,115020.0,0.59284]
[1761578530280,2.00151333,115030.0,115020.0,0.59284]
[1761578530512,1.81853033,115030.0,115020.0,0.59184]
[1761578530714,1.80133033,115030.0,115020.0,0.59184]
[1761578530916,1.20302233,115030.0,115020.0,0.59184]
[1761578531127,1.08509433,115030.0,115020.0,0.59184]
[1761578531372,0.66108214,115030.0,115020.0,0.59184]
[1761578531861,0.66908214,115030.0,115020.0,0.59184]
[1761578532275,0.66808214,115030.0,115020.0,0.59184]
[1761578532474,0.66908214,115030.0,115020.0,0.59184]
[1761578533436,0.66208214,115030.0,115020.0,0.59184]
[1761578533642,0.27281777,115030.0,115020.0,0.59184]
[1761578533849,0.26668669,115030.0,115020.0,0.59184]
[1761578537317,0.09281901,115030.0,115020.0,0.7657228]
[1761578537533,0.003,115030.0,115020.0,1.44989778]
[1761578538155,0.003,115030.0,115020.0,0.7657228]
[1761578538558,0.002,115030.0,115020.0,0.7657228]
[1761578539802,0.18273708,115050.0,115030.0,0.17385668]
[1761578540006,0.08981901,115040.0,115030.0,0.26367569]
[1761578540203,0.26367158,115040.0,115030.0,0.32761668]
[1761578540423,0.08981901,115040.0,115030.0,0.32761668]
[1761578540618,0.17404438,115050.0,115040.0,0.17385257]
[1761578540832,0.26386339,115050.0,115030.0,0.32761668]
[1761578541030,0.26386339,115050.0,115040.0,0.17385257]
[1761578541471,0.09002593,115050.0,115040.0,0.2243995]
[1761578541669,0.09002593,115050.0,115040.0,0.17385257]
[1761578541869,0.26386339,115050.0,115040.0,0.17385257]
[1761578542236,0.09002593,115050.0,115040.0,0.17385257]
[1761578542915,0.26386339,115050.0,115030.0,0.33161668]
[1761578543125,0.26386339,115050.0,115030.0,0.32761668]
[1761578543334,0.26386339,115050.0,115040.0,0.001]
[1761578543995,0.26386339,115050.0,115030.0,0.32761668]
[1761578544201,0.26386339,115050.0,115040.0,0.001]
[1761578544423,0.26386339,115050.0,115040.0,0.17485257]
[1761578545046,0.26386339,115050.0,115040.0,0.17385257]
[1761578545457,0.26386339,115050.0,115030.0,0.32761668]
[1761578546302,0.26386339,115050.0,115030.0,0.41743569]
[1761578546514,0.26386339,115050.0,115030.0,0.42143569]
[1761578547414,0.17385257,115040.0,115030.0,0.42143569]
[1761578547633,0.17385257,115040.0,115030.0,0.33162768]
[1761578548062,0.26367158,115040.0,115030.0,0.004]
[1761578548268,0.26367158,115040.0,115030.0,0.59568]
[1761578549363,0.26367158,115040.0,115030.0,0.59168]
[1761578549806,0.26367158,115040.0,115030.0,0.59568]
[1761578550075,0.26367158,115040.0,115030.0,0.59168]
[1761578550509,0.26567158,115040.0,115030.0,0.59168]
[1761578551343,0.17386768,115030.0,115020.0,0.0904]
[1761578551557,0.26368669,115030.0,115020.0,0.68208]
[1761578552518,0.94786167,115030.0,115020.0,0.68208]
[1761578553080,0.94786167,115030.0,115020.0,0.68308]
[1761578553279,0.26368669,115030.0,115020.0,0.68308]
[1761578553849,0.65282296,115030.0,115020.0,0.68308]
[1761578555398,0.65382296,115030.0,115020.0,0.68308]
[1761578555633,0.65382296,115030.0,115020.0,0.68208]
[1761578555851,0.69812213,115030.0,115020.0,0.438]
[1761578556073,0.69812213,115030.0,115020.0,0.59168]
[1761578556074,1.6950814,115030.0,115020.0,0.59168]
[1761578556284,1.72118069,115030.0,115020.0,0.59168]
[1761578556730,0.55006508,115020.0,115010.0,0.00014599]
[1761578556952,3.44497341,115020.0,115010.0,0.22958599]
[1761578557809,3.35131648,115020.0,115010.0,0.38330599]
[1761578558022,1.01537233,115020.0,115010.0,0.38330599]
[1761578558214,1.69998794,115020.0,115010.0,0.38330599]
[1761578558573,0.55009532,115000.0,114990.0,0.00140035]
[1761578558806,1.32452994,115000.0,114990.0,0.05700035]
[1761578559715,3.11075894,115000.0,114990.0,0.05700035]
[1761578559948,3.11886766,115000.0,114990.0,0.10388035]
[1761578560532,3.12886765,115000.0,114990.0,0.10388035]
[1761578560757,0.17381182,114950.0,114940.0,0.00336663]
[1761578560947,0.17381182,114950.0,114940.0,0.00048635]
[1761578561338,0.17397355,114960.0,114940.0,0.00048635]
[1761578561549,0.17398869,114950.0,114940.0,0.00048635]
[1761578561721,0.2638077,114950.0,114940.0,0.00048635]
[1761578562347,0.2638077,114950.0,114940.0,0.15420635]
[1761578562960,0.2638077,114950.0,114940.0,0.16120635]
[1761578563445,0.2638077,114950.0,114940.0,0.15420635]
[1761578563654,0.2638077,114950.0,114940.0,0.15920635]
[1761578564486,0.2648077,114950.0,114940.0,0.15920635]
[1761578564870,0.7648077,114950.0,114940.0,0.15920635]
[1761578565074,0.7648077,114950.0,114940.0,0.59740635]
[1761578566264,0.7638077,114950.0,114940.0,0.59740635]
[1761578566474,0.7638077,114950.0,114940.0,0.59344225]
[1761578567079,0.7638077,114950.0,114940.0,0.59544225]
[1761578568803,0.7648077,114950.0,114940.0,0.59344225]
[1761578569203,0.7648077,114950.0,114940.0,0.59844225]
[1761578569464,0.7648077,114950.0,114940.0,0.59344225]
[1761578569812,0.7648077,114950.0,114940.0,0.59544225]
[1761578570016,0.7638077,114950.0,114940.0,0.59344225]
[1761578570431,0.7638077,114950.0,114940.0,0.60044225]
[1761578573263,0.7638077,114950.0,114940.0,0.00852225]
[1761578573430,0.7638077,114950.0,114940.0,0.60056225]
[1761578577379,0.7638077,114950.0,114940.0,0.00852225]
[1761578577612,0.7638077,114950.0,114940.0,0.60056225]
[1761578578656,0.7638077,114950.0,114940.0,0.66065847]
[1761578578831,0.7638077,114950.0,114940.0,0.60056225]
[1761578579376,0.77188913,114950.0,114940.0,0.60056225]
[1761578580770,0.59790044,114950.0,114940.0,0.60056225]
[1761578580970,0.77188913,114950.0,114940.0,0.60056225]
[1761578581464,0.59790044,114950.0,114940.0,0.60056225]
[1761578581692,0.50808143,114950.0,114940.0,1.37499687]
[1761578581902,0.50808143,114950.0,114940.0,1.23655874]
[1761578582112,0.50808143,114950.0,114940.0,1.32699874]
[1761578582550,0.50808143,114950.0,114940.0,1.33199874]
[1761578582965,0.50808143,114950.0,114940.0,1.32699874]
[1761578583407,0.50808143,114950.0,114940.0,1.67399874]
[1761578583823,0.5,114950.0,114940.0,1.12082126]
[1761578584026,0.5,114950.0,114940.0,1.67399874]
[1761578584850,0.5,114950.0,114940.0,1.76381775]
[1761578585102,0.5,114950.0,114940.0,1.80000003]
[1761578585725,0.5,114950.0,114940.0,1.79300003]
[1761578585936,0.4998231,114950.0,114940.0,1.79300003]
[1761578586145,0.4998231,114950.0,114940.0,2.35917751]
[1761578586346,0.4998231,114950.0,114940.0,1.79300003]
[1761578586688,0.4998231,114950.0,114940.0,1.23982255]
[1761578586907,0.4998231,114950.0,114940.0,1.79300003]
[1761578587115,0.4998231,114950.0,114940.0,1.80900003]
[1761578587468,0.4210788,114950.0,114940.0,2.36217751]
[1761578587676,0.17289333,114950.0,114940.0,2.3721775]
[1761578588115,0.17289333,114950.0,114940.0,1.81900002]
[1761578591012,0.17289333,114950.0,114940.0,2.3721775]
[1761578591687,0.08164694,114950.0,114940.0,2.3721775]
[1761578591921,0.0373152,114950.0,114940.0,2.3721775]
[1761578593118,0.0373152,114950.0,114940.0,2.39827538]
[1761578593326,0.0373152,114950.0,114940.0,1.8450979]
[1761578593676,0.0373152,114950.0,114940.0,2.39827538]
[1761578593879,0.0373152,114950.0,114940.0,1.8450979]
[1761578594334,0.0373152,114950.0,114940.0,2.39827538]
[1761578594547,0.01150696,115000.0,114950.0,0.37618228]
[1761578594747,0.09792025,115000.0,114990.0,0.05564]
[1761578594958,0.09792025,115000.0,114990.0,0.38324]
[1761578595766,0.27183329,115000.0,114990.0,0.38324]
[1761578596090,0.27283329,115000.0,114990.0,0.38324]
[1761578596323,0.27783329,115000.0,114990.0,0.47305901]
[1761578597108,0.10392025,115000.0,114990.0,0.47305901]
[1761578597307,0.27783329,115000.0,114990.0,0.47305901]
[1761578597727,0.10392025,115000.0,114990.0,0.47305901]
[1761578597968,0.09792025,115000.0,114990.0,0.47305901]
[1761578598510,0.09792025,115000.0,114990.0,0.47405901]
[1761578598735,0.00810124,115000.0,114990.0,1.02723649]
[1761578598943,0.00810124,115000.0,114990.0,1.36723649]
[1761578599172,0.00810124,115000.0,114990.0,1.57591649]
[1761578600903,0.00810124,115000.0,114990.0,1.74984465]
[1761578601354,0.00119315,115030.0,115020.0,0.1738828]
[1761578601538,0.00133901,115030.0,115020.0,1.01661839]
[1761578601992,0.00133901,115030.0,115020.0,0.46344091]
[1761578602207,0.00133901,115030.0,115020.0,1.01661839]
[1761578603265,0.00133901,115030.0,115020.0,1.02061839]
[1761578603704,0.01884766,115070.0,115050.0,0.16689008]
[1761578603915,0.1744937,115070.0,115060.0,0.55694235]
[1761578604101,0.00068646,115070.0,115060.0,0.55694235]
[1761578604407,0.00151404,115070.0,115060.0,0.55694235]
[1761578604828,0.17532128,115070.0,115060.0,0.38312]
[1761578605875,0.17832128,115070.0,115060.0,0.38312]
[1761578606441,0.26814029,115070.0,115060.0,0.39650814]
[1761578606647,0.09433305,115070.0,115060.0,0.57033049]
[1761578608210,0.09133305,115070.0,115060.0,0.57033049]
[1761578608593,0.09533305,115070.0,115060.0,0.57033049]
[1761578608729,0.26914029,115070.0,115060.0,0.57033049]
[1761578609611,0.26914029,115070.0,115060.0,0.39650814]
[1761578610096,0.26914029,115070.0,115060.0,0.60510814]
[1761578611321,0.17382235,115060.0,115050.0,0.03407198]
[1761578611530,0.26364136,115060.0,115050.0,0.79950944]
[1761578612130,0.26364136,115060.0,115050.0,0.20790944]
[1761578612335,0.26364136,115060.0,115050.0,0.79950944]
[1761578612664,0.26464136,115060.0,115050.0,0.79950944]
[1761578612865,0.26464136,115060.0,115050.0,0.79798551]
[1761578613217,0.27271748,115060.0,115050.0,0.79798551]
[1761578615681,0.17383746,115050.0,115040.0,0.26425109]
[1761578615898,0.18191358,115050.0,115040.0,0.85577109]
[1761578616120,0.18191358,115050.0,115040.0,0.26425109]
[1761578616327,0.00807612,115050.0,115040.0,0.85573109]
[1761578617016,0.18191358,115050.0,115040.0,0.85573109]